[Event "Titled Tuesday Blitz January 10 Early 2023"]
[White "Moroni, Luca Jr"]
[Black "Salem, A.R. Saleh"]
[WhiteFideId "865834"]
[BlackFideId "9301348"]
[WhiteElo "2535"]
[BlackElo "2677"]
[Result "0-1"]
[Round "11"]
[TimeControl "180+2"]
[Date "2023.01.10"]
[WhiteClock "0:00:02"]
[BlackClock "0:00:19"]

1. d4 {[%clk 0:03:00]}  Nf6 {[%clk 0:02:59]} 2. c4 {[%clk 0:03:00]}  e6 {[%clk 0:02:59]} 3. Nc3 {[%clk 0:02:57]}  c5 {[%clk 0:03:00]} 4. Nf3 {[%clk 0:02:56]}  cxd4 {[%clk 0:02:55]} 5. Nxd4 {[%clk 0:02:57]}  a6 {[%clk 0:02:50]} 6. g3 {[%clk 0:02:51]}  Qc7 {[%clk 0:02:51]} 7. Qd3 {[%clk 0:02:40]}  Nc6 {[%clk 0:02:49]} 8. Nxc6 {[%clk 0:02:39]}  Qxc6 {[%clk 0:02:49]} 9. f3 {[%clk 0:02:37]}  d5 {[%clk 0:02:48]} 10. cxd5 {[%clk 0:02:34]}  exd5 {[%clk 0:02:48]} 11. Bg2 {[%clk 0:02:34]}  Bc5 {[%clk 0:02:47]} 12. Be3 {[%clk 0:02:31]}  O-O {[%clk 0:02:43]} 13. Bd4 {[%clk 0:02:31]}  Bf5 {[%clk 0:02:39]} 14. Qd2 {[%clk 0:02:26]}  b5 {[%clk 0:02:06]} 15. e3 {[%clk 0:02:17]}  b4 {[%clk 0:02:01]} 16. Ne2 {[%clk 0:02:17]}  Be7 {[%clk 0:01:43]} 17. Rc1 {[%clk 0:02:16]}  Qb5 {[%clk 0:01:37]} 18. b3 {[%clk 0:02:05]}  a5 {[%clk 0:01:34]} 19. O-O {[%clk 0:01:57]}  a4 {[%clk 0:01:35]} 20. Nf4 {[%clk 0:01:53]}  axb3 {[%clk 0:01:33]} 21. axb3 {[%clk 0:01:54]}  Ra3 {[%clk 0:01:22]} 22. g4 {[%clk 0:01:42]}  Be6 {[%clk 0:01:18]} 23. Rb1 {[%clk 0:01:25]}  Rfa8 {[%clk 0:01:16]} 24. Rfc1 {[%clk 0:01:25]}  Nd7 {[%clk 0:01:11]} 25. Bf1 {[%clk 0:01:18]}  Qb8 {[%clk 0:01:10]} 26. Nxe6 {[%clk 0:01:00]}  fxe6 {[%clk 0:01:11]} 27. f4 {[%clk 0:01:01]}  Nf6 {[%clk 0:01:06]} 28. g5 {[%clk 0:00:59]}  Ne4 {[%clk 0:01:06]} 29. Qc2 {[%clk 0:00:57]}  Qe8 {[%clk 0:00:37]} 30. Bd3 {[%clk 0:00:39]}  Qg6 {[%clk 0:00:36]} 31. Qg2 {[%clk 0:00:32]}  Qf5 {[%clk 0:00:36]} 32. Rc7 {[%clk 0:00:29]}  Bf8 {[%clk 0:00:36]} 33. h4 {[%clk 0:00:26]}  Ra2 {[%clk 0:00:37]} 34. Rc2 {[%clk 0:00:25]}  Rxc2 {[%clk 0:00:36]} 35. Bxc2 {[%clk 0:00:26]}  Ra2 {[%clk 0:00:36]} 36. Ra1 {[%clk 0:00:23]}  Rxa1+ {[%clk 0:00:34]} 37. Bxa1 {[%clk 0:00:24]}  Bc5 {[%clk 0:00:34]} 38. Qf3 {[%clk 0:00:06]}  Nxg5 {[%clk 0:00:34]} 39. hxg5 {[%clk 0:00:04]}  Qxc2 {[%clk 0:00:35]} 40. Qh3 {[%clk 0:00:02]}  Qe4 {[%clk 0:00:21]} 41. Kf2 {[%clk 0:00:01]}  Kf7 {[%clk 0:00:22]} 42. Qh5+ {[%clk 0:00:01]}  Qg6 {[%clk 0:00:23]} 43. Qf3 {[%clk 0:00:01]}  Qc2+ {[%clk 0:00:23]} 44. Kg3 {[%clk 0:00:01]}  Qc1 {[%clk 0:00:22]} 45. Qg4 {[%clk 0:00:01]}  Qg1+ {[%clk 0:00:21]} 46. Kh3 {[%clk 0:00:02]}  Qh1+ {[%clk 0:00:19]} 47. Kg3 {[%clk 0:00:02]}  Qxa1 {[%clk 0:00:19]} 48. Kf3 {[%clk 0:00:02]}  Qd1+ {[%clk 0:00:19]} 0-1


[Site "https://www.chess.com"]

[Event "Titled Tuesday Blitz January 10 Early 2023"]
[White "Tomashevsky, Evgeny"]
[Black "Svane, Frederik"]
[WhiteFideId "4147235"]
[BlackFideId "12923044"]
[WhiteElo "2694"]
[BlackElo "2600"]
[Result "1-0"]
[Round "11"]
[TimeControl "180+2"]
[Date "2023.01.10"]
[WhiteClock "0:00:32"]
[BlackClock "0:00:08"]

1. c4 {[%clk 0:03:00]}  e6 {[%clk 0:02:59]} 2. g3 {[%clk 0:02:59]}  d5 {[%clk 0:02:59]} 3. Bg2 {[%clk 0:02:59]}  d4 {[%clk 0:02:58]} 4. Nf3 {[%clk 0:02:58]}  Nc6 {[%clk 0:02:58]} 5. O-O {[%clk 0:02:58]}  Bc5 {[%clk 0:02:59]} 6. d3 {[%clk 0:02:51]}  Nf6 {[%clk 0:02:59]} 7. Nbd2 {[%clk 0:02:51]}  O-O {[%clk 0:02:57]} 8. Nb3 {[%clk 0:02:51]}  Be7 {[%clk 0:02:58]} 9. e3 {[%clk 0:02:52]}  dxe3 {[%clk 0:02:58]} 10. Bxe3 {[%clk 0:02:52]}  Ng4 {[%clk 0:02:42]} 11. Bc5 {[%clk 0:02:52]}  Bxc5 {[%clk 0:02:41]} 12. Nxc5 {[%clk 0:02:52]}  b6 {[%clk 0:02:42]} 13. Nb3 {[%clk 0:02:30]}  Bb7 {[%clk 0:02:34]} 14. d4 {[%clk 0:02:30]}  Rb8 {[%clk 0:02:28]} 15. Qe2 {[%clk 0:02:27]}  Ne7 {[%clk 0:02:23]} 16. Rad1 {[%clk 0:02:23]}  Nf6 {[%clk 0:02:21]} 17. Rfe1 {[%clk 0:02:23]}  Qd6 {[%clk 0:02:16]} 18. d5 {[%clk 0:02:11]}  Ng6 {[%clk 0:01:43]} 19. dxe6 {[%clk 0:02:09]}  Qxe6 {[%clk 0:01:44]} 20. Qxe6 {[%clk 0:02:09]}  fxe6 {[%clk 0:01:44]} 21. Nfd4 {[%clk 0:02:08]}  Bxg2 {[%clk 0:01:18]} 22. Kxg2 {[%clk 0:02:09]}  e5 {[%clk 0:01:19]} 23. Nc6 {[%clk 0:02:08]}  Rbe8 {[%clk 0:01:19]} 24. Re2 {[%clk 0:01:55]}  a5 {[%clk 0:01:16]} 25. Rde1 {[%clk 0:01:51]}  Re6 {[%clk 0:01:10]} 26. Na7 {[%clk 0:01:32]}  Rd8 {[%clk 0:00:58]} 27. Nb5 {[%clk 0:01:28]}  Rc6 {[%clk 0:00:57]} 28. Rc2 {[%clk 0:01:27]}  e4 {[%clk 0:00:53]} 29. Nd2 {[%clk 0:01:25]}  Re8 {[%clk 0:00:20]} 30. b3 {[%clk 0:01:25]}  Kf8 {[%clk 0:00:18]} 31. Nc3 {[%clk 0:01:24]}  Rce6 {[%clk 0:00:16]} 32. Nd5 {[%clk 0:01:24]}  Nxd5 {[%clk 0:00:07]} 33. cxd5 {[%clk 0:01:24]}  R6e7 {[%clk 0:00:07]} 34. Nc4 {[%clk 0:01:17]}  Rd8 {[%clk 0:00:06]} 35. Ne3 {[%clk 0:01:17]}  Ne5 {[%clk 0:00:06]} 36. Nf5 {[%clk 0:01:10]}  Nd3 {[%clk 0:00:05]} 37. Ree2 {[%clk 0:00:57]}  Rf7 {[%clk 0:00:06]} 38. Nd4 {[%clk 0:00:57]}  Rxd5 {[%clk 0:00:05]} 39. Ne6+ {[%clk 0:00:57]}  Ke7 {[%clk 0:00:06]} 40. Nxc7 {[%clk 0:00:57]}  Re5 {[%clk 0:00:06]} 41. Rc6 {[%clk 0:00:41]}  Rf6 {[%clk 0:00:06]} 42. Rc4 {[%clk 0:00:38]}  Nc5 {[%clk 0:00:06]} 43. Nb5 {[%clk 0:00:36]}  Kf7 {[%clk 0:00:07]} 44. Nc3 {[%clk 0:00:35]}  Rfe6 {[%clk 0:00:06]} 45. Rd4 {[%clk 0:00:34]}  Kf6 {[%clk 0:00:07]} 46. Nd5+ {[%clk 0:00:31]}  Kf7 {[%clk 0:00:07]} 47. Ne3 {[%clk 0:00:32]}  Nd3 {[%clk 0:00:07]} 48. Nc4 {[%clk 0:00:32]}  Rc5 {[%clk 0:00:06]} 49. Nd6+ {[%clk 0:00:30]}  Kg6 {[%clk 0:00:06]} 50. Nxe4 {[%clk 0:00:31]}  Rce5 {[%clk 0:00:06]} 51. Rxd3 {[%clk 0:00:30]}  Rxe4 {[%clk 0:00:06]} 52. Rxe4 {[%clk 0:00:31]}  Rxe4 {[%clk 0:00:07]} 53. Rd6+ {[%clk 0:00:31]}  Kf7 {[%clk 0:00:08]} 54. Rxb6 {[%clk 0:00:32]}  Re2 {[%clk 0:00:08]} 55. a4 {[%clk 0:00:32]}  Rc2 {[%clk 0:00:08]} 56. h4 {[%clk 0:00:32]}  Rc3 {[%clk 0:00:08]} 57. Rb7+ {[%clk 0:00:32]}  Kf6 {[%clk 0:00:08]} 58. Rb6+ {[%clk 0:00:33]}  Kf7 {[%clk 0:00:09]} 59. Rb5 {[%clk 0:00:34]}  g6 {[%clk 0:00:09]} 60. h5 {[%clk 0:00:34]}  gxh5 {[%clk 0:00:09]} 61. Rxh5 {[%clk 0:00:34]}  Kg6 {[%clk 0:00:08]} 62. Rb5 {[%clk 0:00:34]}  h5 {[%clk 0:00:09]} 63. f4 {[%clk 0:00:33]}  Rd3 {[%clk 0:00:09]} 64. Kh3 {[%clk 0:00:33]}  Rc3 {[%clk 0:00:05]} 65. Rxa5 {[%clk 0:00:30]}  Rxb3 {[%clk 0:00:05]} 66. Kh4 {[%clk 0:00:31]}  Rb1 {[%clk 0:00:06]} 67. Ra6+ {[%clk 0:00:31]}  Kf5 {[%clk 0:00:07]} 68. Ra5+ {[%clk 0:00:31]}  Kg6 {[%clk 0:00:07]} 69. Rg5+ {[%clk 0:00:31]}  Kf6 {[%clk 0:00:08]} 70. Kxh5 {[%clk 0:00:31]}  Ra1 {[%clk 0:00:08]} 71. a5 {[%clk 0:00:31]}  Ra3 {[%clk 0:00:08]} 72. Kg4 {[%clk 0:00:31]}  Ra1 {[%clk 0:00:09]} 73. Rb5 {[%clk 0:00:31]}  Ra2 {[%clk 0:00:08]} 74. Rb6+ {[%clk 0:00:32]} 1-0


[Site "https://www.chess.com"]

[Event "Titled Tuesday Blitz January 10 Early 2023"]
[White "Kosakowski, Jakub"]
[Black "Keymer, Vincent"]
[WhiteFideId "1185080"]
[BlackFideId "12940690"]
[WhiteElo "2485"]
[BlackElo "2700"]
[Result "0-1"]
[Round "11"]
[TimeControl "180+2"]
[Date "2023.01.10"]
[WhiteClock "0:00:18"]
[BlackClock "0:00:36"]

1. e4 {[%clk 0:02:59]}  c6 {[%clk 0:03:00]} 2. Nf3 {[%clk 0:02:58]}  d5 {[%clk 0:03:01]} 3. Nc3 {[%clk 0:02:58]}  dxe4 {[%clk 0:03:00]} 4. Nxe4 {[%clk 0:02:58]}  Nf6 {[%clk 0:03:01]} 5. Qe2 {[%clk 0:02:58]}  Nxe4 {[%clk 0:03:01]} 6. Qxe4 {[%clk 0:02:58]}  Nd7 {[%clk 0:03:01]} 7. Bc4 {[%clk 0:02:58]}  Nf6 {[%clk 0:03:02]} 8. Ne5 {[%clk 0:02:58]}  e6 {[%clk 0:03:02]} 9. Qe2 {[%clk 0:02:59]}  b5 {[%clk 0:03:03]} 10. Bd3 {[%clk 0:02:59]}  Qc7 {[%clk 0:03:04]} 11. a4 {[%clk 0:02:52]}  Bd6 {[%clk 0:03:04]} 12. Nxc6 {[%clk 0:02:52]}  b4 {[%clk 0:03:04]} 13. Nd4 {[%clk 0:02:52]}  a6 {[%clk 0:03:04]} 14. Nf5 {[%clk 0:02:53]}  Bb7 {[%clk 0:03:05]} 15. Nxd6+ {[%clk 0:02:50]}  Qxd6 {[%clk 0:03:06]} 16. O-O {[%clk 0:02:50]}  h5 {[%clk 0:03:07]} 17. Qe3 {[%clk 0:02:45]}  b3 {[%clk 0:03:05]} 18. cxb3 {[%clk 0:02:39]}  h4 {[%clk 0:02:59]} 19. Be2 {[%clk 0:02:33]}  h3 {[%clk 0:02:38]} 20. g3 {[%clk 0:02:28]}  Rc8 {[%clk 0:02:10]} 21. d4 {[%clk 0:02:17]}  Rc2 {[%clk 0:02:09]} 22. Bd2 {[%clk 0:01:48]}  O-O {[%clk 0:01:39]} 23. Rac1 {[%clk 0:01:39]}  Rfc8 {[%clk 0:01:39]} 24. Bc4 {[%clk 0:01:20]}  Rxb2 {[%clk 0:01:18]} 25. f3 {[%clk 0:00:34]}  Rd8 {[%clk 0:00:54]} 26. Rf2 {[%clk 0:00:33]}  Qa3 {[%clk 0:00:38]} 27. Bb4 {[%clk 0:00:18]}  Qa2 {[%clk 0:00:37]} 28. Rxb2 {[%clk 0:00:18]}  Qxb2 {[%clk 0:00:37]} 29. Bc3 {[%clk 0:00:18]}  Qg2# {[%clk 0:00:36]} 0-1


[Site "https://www.chess.com"]

[Event "Titled Tuesday Blitz January 10 Early 2023"]
[White "Demchenko, Anton"]
[Black "Pranav, V"]
[WhiteFideId "4160258"]
[BlackFideId "25060783"]
[WhiteElo "2623"]
[BlackElo "2597"]
[Result "0-1"]
[Round "11"]
[TimeControl "180+2"]
[Date "2023.01.10"]
[WhiteClock "0:00:02"]
[BlackClock "0:00:48"]

1. e4 {[%clk 0:03:00]}  e5 {[%clk 0:02:59]} 2. Nf3 {[%clk 0:03:00]}  Nc6 {[%clk 0:03:00]} 3. Bc4 {[%clk 0:02:59]}  Nf6 {[%clk 0:03:00]} 4. d3 {[%clk 0:02:59]}  h6 {[%clk 0:03:00]} 5. Nc3 {[%clk 0:02:55]}  d6 {[%clk 0:03:00]} 6. a4 {[%clk 0:02:52]}  g6 {[%clk 0:03:00]} 7. h3 {[%clk 0:02:51]}  Bg7 {[%clk 0:03:00]} 8. Be3 {[%clk 0:02:52]}  Be6 {[%clk 0:02:59]} 9. Bxe6 {[%clk 0:02:40]}  fxe6 {[%clk 0:03:00]} 10. Qd2 {[%clk 0:02:41]}  Qe7 {[%clk 0:02:49]} 11. O-O-O {[%clk 0:02:05]}  a6 {[%clk 0:02:45]} 12. Rhe1 {[%clk 0:01:59]}  b5 {[%clk 0:02:41]} 13. Kb1 {[%clk 0:01:57]}  Kf7 {[%clk 0:02:22]} 14. d4 {[%clk 0:01:19]}  b4 {[%clk 0:02:21]} 15. Ne2 {[%clk 0:01:13]}  Nxe4 {[%clk 0:02:11]} 16. Qd3 {[%clk 0:01:14]}  d5 {[%clk 0:02:11]} 17. dxe5 {[%clk 0:01:01]}  b3 {[%clk 0:02:11]} 18. c3 {[%clk 0:00:55]}  Qe8 {[%clk 0:01:48]} 19. Nf4 {[%clk 0:00:30]}  Ne7 {[%clk 0:01:40]} 20. Nd2 {[%clk 0:00:21]}  Qxa4 {[%clk 0:01:35]} 21. Kc1 {[%clk 0:00:13]}  Rhd8 {[%clk 0:01:32]} 22. f3 {[%clk 0:00:09]}  Nxd2 {[%clk 0:01:32]} 23. Kxd2 {[%clk 0:00:08]}  c5 {[%clk 0:01:28]} 24. Ra1 {[%clk 0:00:06]}  Qc6 {[%clk 0:01:21]} 25. Ra5 {[%clk 0:00:07]}  d4 {[%clk 0:01:20]} 26. cxd4 {[%clk 0:00:05]}  cxd4 {[%clk 0:01:17]} 27. Bf2 {[%clk 0:00:06]}  Qb6 {[%clk 0:01:15]} 28. Ra4 {[%clk 0:00:05]}  Rac8 {[%clk 0:01:13]} 29. Rc1 {[%clk 0:00:04]}  Bxe5 {[%clk 0:01:09]} 30. Ne2 {[%clk 0:00:04]}  Rxc1 {[%clk 0:01:07]} 31. Kxc1 {[%clk 0:00:04]}  Rc8+ {[%clk 0:01:07]} 32. Kd1 {[%clk 0:00:05]}  Qc6 {[%clk 0:01:00]} 33. Rxa6 {[%clk 0:00:05]}  Qc2+ {[%clk 0:00:58]} 34. Qxc2 {[%clk 0:00:06]}  bxc2+ {[%clk 0:00:59]} 35. Kd2 {[%clk 0:00:05]}  c1=Q+ {[%clk 0:00:56]} 36. Nxc1 {[%clk 0:00:05]}  Bf4+ {[%clk 0:00:56]} 37. Kd3 {[%clk 0:00:06]}  Rxc1 {[%clk 0:00:57]} 38. Bxd4 {[%clk 0:00:05]}  Rd1+ {[%clk 0:00:57]} 39. Ke4 {[%clk 0:00:05]}  Bc7 {[%clk 0:00:51]} 40. g4 {[%clk 0:00:02]}  Nd5 {[%clk 0:00:48]} 41. Rc6 {[%clk 0:00:02]}  Re1+ {[%clk 0:00:48]} 42. Kd3 {[%clk 0:00:02]}  Nb4+ {[%clk 0:00:48]} 0-1


[Site "https://www.chess.com"]

[Event "Titled Tuesday Blitz January 10 Early 2023"]
[White "Rakhmanov, Aleksandr"]
[Black "Jones, Gawain C B"]
[WhiteFideId "4173708"]
[BlackFideId "409561"]
[WhiteElo "2632"]
[BlackElo "2618"]
[Result "0-1"]
[Round "11"]
[TimeControl "180+2"]
[Date "2023.01.10"]
[WhiteClock "0:00:06"]
[BlackClock "0:00:34"]

1. Nf3 {[%clk 0:03:00]}  d6 {[%clk 0:02:59]} 2. d4 {[%clk 0:02:59]}  g6 {[%clk 0:02:57]} 3. e4 {[%clk 0:02:59]}  Nf6 {[%clk 0:02:57]} 4. Bd3 {[%clk 0:02:59]}  Nc6 {[%clk 0:02:55]} 5. h3 {[%clk 0:02:58]}  e5 {[%clk 0:02:55]} 6. dxe5 {[%clk 0:02:55]}  Nxe5 {[%clk 0:02:53]} 7. O-O {[%clk 0:02:54]}  Nxd3 {[%clk 0:02:52]} 8. Qxd3 {[%clk 0:02:52]}  Bg7 {[%clk 0:02:51]} 9. Nc3 {[%clk 0:02:53]}  O-O {[%clk 0:02:51]} 10. Bg5 {[%clk 0:02:53]}  h6 {[%clk 0:02:51]} 11. Bh4 {[%clk 0:02:53]}  Re8 {[%clk 0:02:40]} 12. Rfe1 {[%clk 0:02:50]}  Be6 {[%clk 0:02:28]} 13. Rad1 {[%clk 0:02:49]}  Qc8 {[%clk 0:02:25]} 14. Nd4 {[%clk 0:02:28]}  Bd7 {[%clk 0:02:23]} 15. Qd2 {[%clk 0:02:24]}  Nh5 {[%clk 0:02:16]} 16. Nd5 {[%clk 0:02:22]}  g5 {[%clk 0:02:16]} 17. Bxg5 {[%clk 0:02:18]}  hxg5 {[%clk 0:02:14]} 18. Qxg5 {[%clk 0:02:19]}  Re5 {[%clk 0:02:13]} 19. Nf5 {[%clk 0:01:54]}  Bxf5 {[%clk 0:01:58]} 20. exf5 {[%clk 0:01:54]}  Rxd5 {[%clk 0:01:56]} 21. Rxd5 {[%clk 0:01:50]}  Nf6 {[%clk 0:01:56]} 22. Rd3 {[%clk 0:01:41]}  Nh7 {[%clk 0:01:53]} 23. Qh5 {[%clk 0:01:36]}  Nf6 {[%clk 0:01:50]} 24. Qg5 {[%clk 0:01:32]}  Nh7 {[%clk 0:01:50]} 25. Qf4 {[%clk 0:01:05]}  Be5 {[%clk 0:01:34]} 26. Rg3+ {[%clk 0:00:49]}  Kh8 {[%clk 0:01:30]} 27. Rxe5 {[%clk 0:00:50]}  dxe5 {[%clk 0:01:30]} 28. Qxe5+ {[%clk 0:00:51]}  f6 {[%clk 0:01:30]} 29. Qe7 {[%clk 0:00:45]}  Qf8 {[%clk 0:01:28]} 30. Qxc7 {[%clk 0:00:45]}  Rc8 {[%clk 0:01:12]} 31. Qxb7 {[%clk 0:00:35]}  Rxc2 {[%clk 0:01:12]} 32. Qxa7 {[%clk 0:00:24]}  Rxb2 {[%clk 0:00:59]} 33. a4 {[%clk 0:00:24]}  Ng5 {[%clk 0:00:44]} 34. Rg4 {[%clk 0:00:22]}  Qd6 {[%clk 0:00:37]} 35. Rh4+ {[%clk 0:00:18]}  Kg8 {[%clk 0:00:35]} 36. f4 {[%clk 0:00:06]}  Nf3+ {[%clk 0:00:34]} 0-1


[Site "https://www.chess.com"]

[Event "Titled Tuesday Blitz January 10 Early 2023"]
[White "Zemlyanskii, Ivan"]
[Black "Deac, Bogdan-Daniel"]
[WhiteFideId "24249971"]
[BlackFideId "1226380"]
[WhiteElo "2300"]
[BlackElo "2700"]
[Result "1-0"]
[Round "11"]
[TimeControl "180+2"]
[Date "2023.01.10"]
[WhiteClock "0:00:09"]
[BlackClock "0:00:06"]

1. d4 {[%clk 0:03:00]}  Nf6 {[%clk 0:02:59]} 2. c4 {[%clk 0:03:01]}  e6 {[%clk 0:02:59]} 3. Nf3 {[%clk 0:03:02]}  Bb4+ {[%clk 0:02:59]} 4. Bd2 {[%clk 0:03:02]}  a5 {[%clk 0:02:58]} 5. a3 {[%clk 0:02:59]}  Bxd2+ {[%clk 0:02:55]} 6. Qxd2 {[%clk 0:03:00]}  b6 {[%clk 0:02:56]} 7. Nc3 {[%clk 0:02:59]}  Bb7 {[%clk 0:02:56]} 8. e3 {[%clk 0:03:00]}  d6 {[%clk 0:02:52]} 9. Bd3 {[%clk 0:02:58]}  Bxf3 {[%clk 0:02:50]} 10. gxf3 {[%clk 0:02:58]}  Nbd7 {[%clk 0:02:50]} 11. O-O-O {[%clk 0:02:49]}  c6 {[%clk 0:02:44]} 12. f4 {[%clk 0:02:42]}  Qe7 {[%clk 0:02:37]} 13. e4 {[%clk 0:02:21]}  Nh5 {[%clk 0:02:24]} 14. e5 {[%clk 0:02:16]}  d5 {[%clk 0:02:20]} 15. cxd5 {[%clk 0:02:16]}  cxd5 {[%clk 0:02:19]} 16. f5 {[%clk 0:02:13]}  Qh4 {[%clk 0:02:15]} 17. Rhg1 {[%clk 0:01:52]}  O-O {[%clk 0:02:11]} 18. f6 {[%clk 0:01:47]}  g6 {[%clk 0:02:05]} 19. Ne2 {[%clk 0:01:31]}  Nhxf6 {[%clk 0:01:09]} 20. exf6 {[%clk 0:01:26]}  Nxf6 {[%clk 0:01:10]} 21. Qe3 {[%clk 0:01:19]}  Rac8+ {[%clk 0:00:59]} 22. Kb1 {[%clk 0:01:19]}  Rc7 {[%clk 0:00:59]} 23. Nf4 {[%clk 0:01:00]}  Ng4 {[%clk 0:00:51]} 24. Qh3 {[%clk 0:00:26]}  Qxh3 {[%clk 0:00:33]} 25. Nxh3 {[%clk 0:00:27]}  Nf6 {[%clk 0:00:10]} 26. Nf4 {[%clk 0:00:26]}  Rfc8 {[%clk 0:00:09]} 27. f3 {[%clk 0:00:26]}  Kf8 {[%clk 0:00:09]} 28. h4 {[%clk 0:00:25]}  Ke7 {[%clk 0:00:08]} 29. Rc1 {[%clk 0:00:25]}  Kd6 {[%clk 0:00:07]} 30. Rxc7 {[%clk 0:00:20]}  Rxc7 {[%clk 0:00:08]} 31. Rc1 {[%clk 0:00:21]}  Rxc1+ {[%clk 0:00:07]} 32. Kxc1 {[%clk 0:00:22]}  h6 {[%clk 0:00:07]} 33. Kd2 {[%clk 0:00:21]}  g5 {[%clk 0:00:08]} 34. hxg5 {[%clk 0:00:21]}  hxg5 {[%clk 0:00:08]} 35. Nh3 {[%clk 0:00:18]}  g4 {[%clk 0:00:09]} 36. fxg4 {[%clk 0:00:19]}  Nxg4 {[%clk 0:00:10]} 37. Ng5 {[%clk 0:00:20]}  f6 {[%clk 0:00:08]} 38. Nf3 {[%clk 0:00:19]}  e5 {[%clk 0:00:08]} 39. Nh4 {[%clk 0:00:13]}  exd4 {[%clk 0:00:07]} 40. Be2 {[%clk 0:00:13]}  Ne5 {[%clk 0:00:06]} 41. Nf5+ {[%clk 0:00:11]}  Kc5 {[%clk 0:00:07]} 42. Bd3 {[%clk 0:00:10]}  a4 {[%clk 0:00:06]} 43. Ng7 {[%clk 0:00:08]}  Nc4+ {[%clk 0:00:05]} 44. Kc2 {[%clk 0:00:09]}  Ne3+ {[%clk 0:00:05]} 45. Kd2 {[%clk 0:00:09]}  Kd6 {[%clk 0:00:05]} 46. Nf5+ {[%clk 0:00:09]}  Nxf5 {[%clk 0:00:05]} 47. Bxf5 {[%clk 0:00:10]}  b5 {[%clk 0:00:05]} 48. Kd3 {[%clk 0:00:10]}  Kc5 {[%clk 0:00:05]} 49. Bd7 {[%clk 0:00:08]}  b4 {[%clk 0:00:04]} 50. Bxa4 {[%clk 0:00:08]}  bxa3 {[%clk 0:00:05]} 51. bxa3 {[%clk 0:00:07]}  f5 {[%clk 0:00:05]} 52. Bd1 {[%clk 0:00:07]}  f4 {[%clk 0:00:05]} 53. Bf3 {[%clk 0:00:07]}  Kb5 {[%clk 0:00:05]} 54. Bd1 {[%clk 0:00:05]}  f3 {[%clk 0:00:05]} 55. Kc2 {[%clk 0:00:05]}  f2 {[%clk 0:00:04]} 56. Be2+ {[%clk 0:00:05]}  Kc5 {[%clk 0:00:04]} 57. Kb3 {[%clk 0:00:06]}  Kd6 {[%clk 0:00:04]} 58. a4 {[%clk 0:00:06]}  Ke5 {[%clk 0:00:05]} 59. a5 {[%clk 0:00:07]}  Ke4 {[%clk 0:00:05]} 60. Kc2 {[%clk 0:00:06]}  Ke3 {[%clk 0:00:04]} 61. Kd1 {[%clk 0:00:07]}  d3 {[%clk 0:00:04]} 62. Bf1 {[%clk 0:00:07]}  Kf3 {[%clk 0:00:04]} 63. a6 {[%clk 0:00:08]}  Kg3 {[%clk 0:00:05]} 64. a7 {[%clk 0:00:08]}  Kh2 {[%clk 0:00:06]} 65. a8=Q {[%clk 0:00:09]}  Kg1 {[%clk 0:00:06]} 66. Bxd3 {[%clk 0:00:09]} 1-0


[Site "https://www.chess.com"]

[Event "Titled Tuesday Blitz January 10 Early 2023"]
[White "Avila Pavas, Santiago"]
[Black "Vokhidov, Shamsiddin"]
[WhiteFideId "4437128"]
[BlackFideId "14204223"]
[WhiteElo "2522"]
[BlackElo "2586"]
[Result "0-1"]
[Round "11"]
[TimeControl "180+2"]
[Date "2023.01.10"]
[WhiteClock "0:00:02"]
[BlackClock "0:00:21"]

1. d4 {[%clk 0:03:00]}  Nf6 {[%clk 0:03:00]} 2. Nf3 {[%clk 0:03:01]}  d5 {[%clk 0:03:01]} 3. Bf4 {[%clk 0:03:01]}  c5 {[%clk 0:03:00]} 4. e3 {[%clk 0:03:02]}  Nc6 {[%clk 0:03:01]} 5. c3 {[%clk 0:03:02]}  Qb6 {[%clk 0:03:00]} 6. Qb3 {[%clk 0:03:03]}  c4 {[%clk 0:03:00]} 7. Qc2 {[%clk 0:03:03]}  Bf5 {[%clk 0:03:01]} 8. Qc1 {[%clk 0:03:04]}  e6 {[%clk 0:03:01]} 9. Nbd2 {[%clk 0:03:05]}  Be7 {[%clk 0:03:01]} 10. Be2 {[%clk 0:03:05]}  O-O {[%clk 0:03:01]} 11. Bd1 {[%clk 0:03:06]}  Qa5 {[%clk 0:02:56]} 12. Bc2 {[%clk 0:03:06]}  b5 {[%clk 0:02:53]} 13. a3 {[%clk 0:03:05]}  Bxc2 {[%clk 0:02:45]} 14. Qxc2 {[%clk 0:03:05]}  Qb6 {[%clk 0:02:46]} 15. e4 {[%clk 0:02:54]}  dxe4 {[%clk 0:02:40]} 16. Nxe4 {[%clk 0:02:54]}  Nd5 {[%clk 0:02:41]} 17. Bg3 {[%clk 0:02:40]}  f5 {[%clk 0:02:35]} 18. Ned2 {[%clk 0:02:29]}  f4 {[%clk 0:02:26]} 19. Bh4 {[%clk 0:02:30]}  Bxh4 {[%clk 0:02:25]} 20. Nxh4 {[%clk 0:02:29]}  e5 {[%clk 0:02:26]} 21. dxe5 {[%clk 0:02:09]}  Nxe5 {[%clk 0:02:25]} 22. O-O {[%clk 0:02:10]}  Nd3 {[%clk 0:02:16]} 23. b3 {[%clk 0:02:10]}  Ne3 {[%clk 0:02:05]} 24. fxe3 {[%clk 0:01:58]}  fxe3 {[%clk 0:02:06]} 25. Rxf8+ {[%clk 0:01:28]}  Rxf8 {[%clk 0:02:07]} 26. Ndf3 {[%clk 0:01:28]}  e2+ {[%clk 0:02:03]} 27. Nd4 {[%clk 0:01:29]}  e1=Q+ {[%clk 0:01:55]} 28. Rxe1 {[%clk 0:01:29]}  Nxe1 {[%clk 0:01:56]} 29. Qe4 {[%clk 0:00:59]}  Nd3 {[%clk 0:01:55]} 30. h3 {[%clk 0:00:56]}  Qh6 {[%clk 0:01:41]} 31. Qd5+ {[%clk 0:00:28]}  Kh8 {[%clk 0:01:38]} 32. Nhf5 {[%clk 0:00:19]}  Qc1+ {[%clk 0:01:32]} 33. Kh2 {[%clk 0:00:20]}  Qf4+ {[%clk 0:01:25]} 34. Kg1 {[%clk 0:00:20]}  Re8 {[%clk 0:01:19]} 35. Ne6 {[%clk 0:00:17]}  Qe5 {[%clk 0:01:12]} 36. Qd7 {[%clk 0:00:02]}  Rxe6 {[%clk 0:01:05]} 37. Qf7 {[%clk 0:00:02]}  h6 {[%clk 0:00:29]} 38. Nxg7 {[%clk 0:00:02]}  Rf6 {[%clk 0:00:21]} 0-1


[Site "https://www.chess.com"]